fUST/lending_fUST_20250930
["ID","MTS","AMOUNT","RATE_DAILY","PERIOD"]
[388453192,1759175442642,-480.0,0.00022897,2]
[388453193,1759175442651,-249.11112423,0.00022897,2]
[388453194,1759175442661,-480.0,0.00022897,2]
[388453196,1759175442671,-480.0,0.00022897,2]
[388453199,1759175442682,-480.0,0.00022897,2]
[388453200,1759175442692,-480.0,0.00022897,2]
[388453201,1759175442702,-480.0,0.00022897,2]
[388453202,1759175442715,-480.0,0.00022897,2]
[388453203,1759175442724,-480.0,0.00022897,2]
[388453205,1759175442733,-480.0,0.00022897,2]
[388453206,1759175442742,-480.0,0.00022897,2]
[388453207,1759175442751,-480.0,0.00022897,2]
[388453208,1759175442761,-498.12,0.00022897,2]
[388453209,1759175442770,-482.26776614,0.00022897,2]
[388453211,1759175442780,-480.0,0.00022897,2]
[388453212,1759175442789,-480.0,0.00022897,2]
[388453214,1759175442799,-480.0,0.00022897,2]
[388453215,1759175442808,-480.0,0.00022897,2]
[388453216,1759175442818,-568.95,0.00022897,2]
[388453217,1759175442829,-480.0,0.00022897,2]
[388453219,1759175442839,-480.0,0.00022897,2]
[388453221,1759175442848,-435.25189358,0.00022897,2]
[388453223,1759175442857,-480.0,0.00022897,2]
[388453225,1759175442866,-496.44597838,0.00022897,2]
[388453227,1759175442876,-480.0,0.00022897,2]
[388453228,1759175442885,-151.0,0.000229,9]
[388453230,1759175442895,-500.0,0.000229,2]
[388453232,1759175442905,-1430.76095552,0.0002291,2]
[388453233,1759175442914,-8344.28963856,0.0002291,2]
[388453234,1759175442924,-282.0,0.00022917,2]
[388453235,1759175442933,-500.0,0.00022926,2]
[388453236,1759175442943,-500.0,0.00022926,2]
[388453237,1759175442952,-1000.0,0.00022926,2]
[388453238,1759175442961,-1000.0,0.00022926,2]
[388453239,1759175442971,-1000.0,0.00022926,2]
[388453240,1759175442980,-1000.0,0.00022926,2]
[388453241,1759175442989,-1000.0,0.00022926,2]
[388453243,1759175442998,-1000.0,0.00022926,2]
[388453245,1759175443007,-155.0,0.00022927,2]
[388453246,1759175443016,-500.0,0.00022927,2]
[388453248,1759175443026,-1000.0,0.00022927,2]
[388453249,1759175443035,-500.0,0.00022929,2]
[388453250,1759175443044,-500.0,0.00022929,2]
[388453251,1759175443053,-596.39962578,0.00022929,2]
[388453252,1759175443062,-1000.0,0.00022929,2]
[388453253,1759175443073,-1000.0,0.00022929,2]
[388453254,1759175443083,-1000.0,0.00022929,2]
[388453255,1759175443093,-1000.0,0.00022929,2]
[388453257,1759175443103,-1000.0,0.0002293,2]
[388453259,1759175443112,-1000.0,0.0002293,2]
[388453261,1759175443122,-1000.0,0.0002293,2]
[388453262,1759175443131,-1170.21102171,0.0002293,2]
[388453264,1759175443140,-5103.93684328,0.00022931,2]
[388453266,1759175443150,-168.0,0.00022989,2]
[388453268,1759175443159,-100000.0,0.0002299,2]
[388453270,1759175443169,-729.0,0.00022991,2]
[388453272,1759175443178,-151.0,0.00023,6]
[388453274,1759175443188,-322.83,0.00023013,2]
[388453276,1759175443197,-405.179,0.00023032,2]
[388453278,1759175443206,-480.29820299,0.00023032,2]
[388453279,1759175443215,-8344.28963856,0.00023047,2]
[388453281,1759175443224,-437.9317725,0.00023073,2]
[388453283,1759175443233,-150.0,0.00023073,2]
[388453284,1759175443244,-500.0,0.00023073,2]
[388453286,1759175443253,-502.39929646,0.00023073,2]
[388453288,1759175443263,-500.0,0.00023073,2]
[388453290,1759175443274,-500.0,0.00023073,2]
[388453292,1759175443284,-373.59886101,0.00023073,2]
[388453294,1759175443294,-500.0,0.00023073,2]
[388453296,1759175443304,-500.0,0.00023073,2]
[388453298,1759175443314,-500.0,0.00023073,2]
[388453300,1759175443325,-500.0,0.00023073,2]
[388453302,1759175443335,-500.0,0.00023073,2]
[388453304,1759175443346,-500.0,0.00023073,2]
[388453305,1759175443357,-480.0,0.00023089,2]
[388453307,1759175443367,-480.0,0.00023089,2]
[388453309,1759175443377,-480.0,0.00023089,2]
[388453311,1759175443387,-480.0,0.00023096,2]
[388453313,1759175443397,-480.0,0.00023096,2]
[388453315,1759175443410,-480.0,0.00023096,2]
[388453317,1759175443420,-480.0,0.00023096,2]
[388453319,1759175443431,-485.31297155,0.00023096,2]
[388453321,1759175443441,-1059.53,0.00023096,2]
[388453323,1759175443450,-480.0,0.00023096,2]
[388453325,1759175443460,-480.0,0.00023096,2]
[388453326,1759175443469,-510.01,0.00023096,2]
[388453328,1759175443478,-480.0,0.00023096,2]
[388453330,1759175443487,-480.0,0.00023096,2]
[388453332,1759175443497,-592.09,0.00023096,2]
[388453334,1759175443506,-480.0,0.00023096,2]
[388453336,1759175443516,-942.5,0.00023096,2]
[388453337,1759175443526,-480.0,0.00023096,2]
[388453339,1759175443536,-940.77,0.00023096,2]
[388453341,1759175443546,-480.0,0.00023096,2]
[388453343,1759175443555,-480.0,0.00023096,2]
[388453345,1759175443565,-1335.3,0.00023096,2]
[388453347,1759175443577,-480.0,0.00023096,2]
[388453349,1759175443586,-944.07,0.00023096,2]
[388453351,1759175443595,-480.0,0.00023096,2]
[388453353,1759175443604,-560.97,0.00023096,2]
[388453354,1759175443614,-714.61,0.00023096,2]
[388453356,1759175443624,-480.0,0.00023096,2]
[388453358,1759175443633,-517.29,0.00023096,2]
[388453359,1759175443642,-1220.46,0.00023096,2]
[388453361,1759175443652,-520.52,0.00023096,2]
[388453363,1759175443661,-690.75,0.00023096,2]
[388453365,1759175443670,-480.0,0.00023096,2]
[388453367,1759175443679,-480.0,0.00023096,2]
[388453369,1759175443689,-552.93,0.00023096,2]
[388453371,1759175443699,-480.0,0.00023096,2]
[388453372,1759175443709,-480.0,0.00023096,2]
[388453374,1759175443721,-583.16,0.00023096,2]
[388453376,1759175443731,-932.04,0.00023096,2]
[388453378,1759175443741,-919.61,0.00023096,2]
[388453380,1759175443751,-830.68,0.00023096,2]
[388453382,1759175443761,-480.0,0.00023096,2]
[388453383,1759175443770,-480.0,0.00023096,2]
[388453385,1759175443780,-480.0,0.00023096,2]
[388453387,1759175443792,-480.0,0.00023096,2]
[388453389,1759175443801,-480.0,0.00023096,2]
[388453391,1759175443810,-709.63,0.00023096,2]
[388453393,1759175443821,-525.21,0.00023096,2]
[388453395,1759175443831,-584.79,0.00023096,2]
[388453397,1759175443840,-480.0,0.00023096,2]
[388453398,1759175443849,-774.22,0.00023096,2]
[388453400,1759175443859,-400.0,0.00023096,2]
[388453402,1759175443868,-480.0,0.00023096,2]
[388453404,1759175443877,-480.0,0.00023096,2]
[388453406,1759175443887,-480.0,0.00023096,2]
[388453408,1759175443897,-906.55,0.00023096,2]
[388453410,1759175443906,-480.0,0.00023096,2]
[388453412,1759175443916,-623.42,0.00023096,2]
[388453414,1759175443925,-1981.92,0.00023096,2]
[388453416,1759175443935,-480.0,0.00023096,2]
[388453417,1759175443944,-771.14,0.00023096,2]
[388453419,1759175443954,-480.0,0.00023096,2]
[388453421,1759175443964,-1633.82,0.00023096,2]
[388453423,1759175443974,-480.0,0.00023096,2]
[388453425,1759175443984,-480.0,0.00023096,2]
[388453427,1759175443993,-1141.41,0.00023096,2]
[388453429,1759175444002,-1057.06,0.00023096,2]
[388453430,1759175444011,-494.51857176,0.00023096,2]
[388453432,1759175444020,-617.63068873,0.00023096,2]
[388453434,1759175444029,-480.0,0.00023096,2]
[388453436,1759175444038,-533.47,0.00023096,2]
[388453438,1759175444048,-1364.74,0.00023096,2]
[388453440,1759175444058,-1215.29,0.00023096,2]
[388453442,1759175444067,-480.0,0.00023096,2]
[388453443,1759175444077,-480.0,0.00023096,2]
[388453445,1759175444086,-650.23,0.00023096,2]
[388453447,1759175444095,-480.0,0.00023096,2]
[388453449,1759175444104,-5421.03,0.00023096,2]
[388453451,1759175444114,-480.0,0.00023096,2]
[388453453,1759175444124,-823.2,0.00023096,2]
[388453455,1759175444133,-1305.22,0.00023096,2]
[388453457,1759175444143,-527.73,0.00023096,2]
[388453459,1759175444153,-480.0,0.00023096,2]
[388453461,1759175444162,-2525.06,0.00023096,2]
[388453463,1759175444172,-480.0,0.00023096,2]
[388453464,1759175444182,-2306.7,0.00023096,2]
[388453466,1759175444192,-667.4,0.00023096,2]
[388453468,1759175444202,-1348.8,0.00023096,2]
[388453470,1759175444212,-736.28,0.00023096,2]
[388453472,1759175444221,-550.18,0.00023096,2]
[388453474,1759175444231,-5517.91,0.00023096,2]
[388453476,1759175444241,-1042.2,0.00023096,2]
[388453478,1759175444251,-2461.32,0.00023096,2]
[388453480,1759175444260,-817.56,0.00023096,2]
[388453482,1759175444270,-2768.83,0.00023096,2]
[388453484,1759175444279,-480.0,0.00023096,2]
[388453485,1759175444289,-899.26,0.00023096,2]
[388453487,1759175444299,-628.9,0.00023096,2]
[388453489,1759175444308,-480.0,0.00023096,2]
[388453491,1759175444318,-741.9,0.00023096,2]
[388453493,1759175444328,-866.04,0.00023096,2]
[388453495,1759175444337,-633.11,0.00023096,2]
[388453497,1759175444346,-5907.31,0.00023096,2]
[388453499,1759175444355,-480.0,0.00023096,2]
[388453500,1759175444364,-480.0,0.00023096,2]
[388453502,1759175444374,-480.0,0.00023096,2]
[388453504,1759175444383,-630.21,0.00023096,2]
[388453506,1759175444394,-480.0,0.00023096,2]
[388453508,1759175444403,-1483.05,0.00023096,2]
[388453510,1759175444412,-1935.37,0.00023096,2]
[388453512,1759175444421,-1360.56,0.00023096,2]
[388453514,1759175444430,-480.0,0.00023096,2]
[388453516,1759175444440,-1101.37,0.00023096,2]
[388453517,1759175444452,-546.45,0.00023096,2]
[388453519,1759175444461,-480.0,0.00023096,2]
[388453521,1759175444470,-500.0,0.00023096,2]
[388453523,1759175444480,-289.77301404,0.00023096,2]
[388453525,1759175444489,-480.0,0.00023098,2]
[388453527,1759175444499,-480.0,0.00023098,2]
[388453529,1759175444508,-480.0,0.00023098,2]
[388453531,1759175444518,-480.0,0.00023098,2]
[388453533,1759175444527,-480.0,0.00023098,2]
[388453534,1759175444536,-480.0,0.00023098,2]
[388453536,1759175444547,-480.0,0.00023098,2]
[388453538,1759175444556,-480.0,0.00023098,2]
[388453540,1759175444566,-492.41258199,0.00023098,2]
[388453542,1759175444576,-174.66757281,0.00023098,2]
[388453544,1759175444586,-480.0,0.00023099,2]
[388453546,1759175444596,-480.0,0.00023099,2]
[388453548,1759175444606,-480.0,0.00023099,2]
[388453550,1759175444615,-480.0,0.00023099,2]
[388453552,1759175444625,-490.59,0.00023099,2]
[388453554,1759175444634,-480.0,0.00023099,2]
[388453555,1759175444644,-151.0,0.000231,5]
[388453557,1759175444653,-509.94,0.000231,2]
[388453559,1759175444662,-480.0,0.000231,2]
[388453561,1759175444672,-480.0,0.000231,2]
[388453563,1759175444681,-480.0,0.000231,2]
[388453565,1759175444690,-480.0,0.000231,2]
[388453567,1759175444700,-480.0,0.000231,2]
[388453569,1759175444713,-480.0,0.000231,2]
[388453571,1759175444723,-480.0,0.000231,2]
[388453573,1759175444733,-480.0,0.000231,2]
[388453575,1759175444743,-480.0,0.000231,2]
[388453576,1759175444752,-452.72785716,0.000231,2]
[388453578,1759175444762,-480.0,0.000231,2]
[388453580,1759175444771,-480.0,0.000231,2]
[388453582,1759175444781,-480.0,0.000231,2]
[388453584,1759175444790,-524.38,0.000231,2]
[388453586,1759175444801,-480.0,0.000231,2]
[388453588,1759175444810,-480.0,0.000231,2]
[388453590,1759175444820,-1015.13,0.000231,2]
[388453592,1759175444829,-480.0,0.000231,2]
[388453594,1759175444838,-480.0,0.000231,2]
[388453595,1759175444847,-480.0,0.000231,2]
[388453601,1759175444906,-480.0,0.000231,2]
[388453603,1759175444915,-1868.33,0.000231,2]
[388453604,1759175444924,-528.3,0.000231,2]
[388453606,1759175444933,-480.0,0.000231,2]
[388453608,1759175444942,-480.0,0.000231,2]
[388453610,1759175444951,-480.0,0.000231,2]
[388453612,1759175444960,-480.0,0.000231,2]
[388453614,1759175444969,-360.35931492,0.000231,2]
[388453615,1759175444978,-2358.96,0.000231,2]
[388453617,1759175444987,-480.0,0.000231,2]
[388453619,1759175444997,-480.0,0.000231,2]
[388453621,1759175445006,-480.0,0.000231,2]
[388453623,1759175445016,-480.0,0.000231,2]
[388453625,1759175445025,-303.98594967,0.000231,2]
[388453627,1759175445034,-762.69,0.000231,2]
[388453629,1759175445043,-480.0,0.000231,2]
[388453630,1759175445052,-480.0,0.000231,2]
[388453632,1759175445062,-596.27,0.000231,2]
[388453634,1759175445071,-480.0,0.000231,2]
[388453636,1759175445080,-632.19,0.000231,2]
[388453638,1759175445088,-480.0,0.000231,2]
[388453640,1759175445098,-549.62,0.000231,2]
[388453642,1759175445107,-1428.69,0.000231,2]
[388453644,1759175445117,-480.0,0.000231,2]
[388453645,1759175445126,-966.88,0.000231,2]
[388453647,1759175445137,-480.0,0.000231,2]
[388453649,1759175445146,-646.13,0.000231,2]
[388453651,1759175445155,-480.0,0.000231,2]
[388453653,1759175445164,-1229.7,0.000231,2]
[388453655,1759175445173,-480.0,0.000231,2]
[388453657,1759175445184,-497.29,0.000231,2]
[388453659,1759175445193,-480.0,0.000231,2]
[388453661,1759175445202,-480.0,0.000231,2]
[388453662,1759175445211,-480.0,0.000231,2]
[388453664,1759175445221,-480.0,0.000231,2]
[388453666,1759175445231,-598.19,0.000231,2]
[388453668,1759175445240,-546.19,0.000231,2]
[388453669,1759175445249,-535.91,0.000231,2]
[388453671,1759175445258,-480.0,0.000231,2]
[388453673,1759175445267,-1981.01,0.000231,2]
[388453675,1759175445277,-480.0,0.000231,2]
[388453677,1759175445286,-480.0,0.000231,2]
[388453679,1759175445295,-480.0,0.000231,2]
[388453681,1759175445304,-480.0,0.000231,2]
[388453682,1759175445313,-480.0,0.000231,2]
[388453683,1759175445322,-480.0,0.000231,2]
[388453684,1759175445331,-672.43,0.000231,2]
[388453685,1759175445340,-480.0,0.000231,2]
[388453686,1759175445349,-489.12,0.000231,2]
[388453687,1759175445358,-632.71,0.000231,2]
[388453689,1759175445368,-573.34,0.000231,2]
[388453690,1759175445377,-2197.93,0.000231,2]
[388453691,1759175445386,-939.7,0.000231,2]
[388453692,1759175445395,-480.0,0.000231,2]
[388453693,1759175445404,-480.0,0.000231,2]
[388453694,1759175445414,-564.41,0.000231,2]
[388453695,1759175445423,-480.0,0.000231,2]
[388453696,1759175445433,-217.00372313,0.000231,2]
[388453697,1759175445442,-2026.91,0.000231,2]
[388453698,1759175445451,-554.48,0.000231,2]
[388453699,1759175445460,-480.0,0.000231,2]
[388453700,1759175445470,-513.92,0.000231,2]
[388453701,1759175445480,-758.25,0.000231,2]
[388453702,1759175445489,-3730.17,0.000231,2]
[388453703,1759175445498,-480.0,0.000231,2]
[388453704,1759175445507,-480.0,0.000231,2]
[388453706,1759175445516,-480.0,0.000231,2]
[388453707,1759175445525,-480.0,0.000231,2]
[388453708,1759175445534,-9332.11,0.000231,2]
[388453709,1759175445544,-671.44,0.000231,2]
[388453710,1759175445553,-480.0,0.000231,2]
[388453711,1759175445562,-480.0,0.000231,2]
[388453713,1759175445572,-480.0,0.000231,2]
[388453715,1759175445582,-1501.44,0.000231,2]
[388453716,1759175445591,-480.0,0.000231,2]
[388453717,1759175445601,-480.0,0.000231,2]
[388453718,1759175445611,-1367.64,0.000231,2]
[388453719,1759175445621,-480.0,0.000231,2]
[388453721,1759175445631,-500.0,0.000231,2]
[388453722,1759175445641,-3789.72,0.000231,2]
[388453723,1759175445651,-1349.65,0.000231,2]
[388453724,1759175445661,-3131.58,0.000231,2]
[388453725,1759175445671,-871.93,0.000231,2]
[388453726,1759175445681,-2103.73,0.000231,2]
[388453727,1759175445691,-480.0,0.000231,2]
[388453728,1759175445701,-480.0,0.000231,2]
[388453729,1759175445712,-480.0,0.000231,2]
[388453730,1759175445724,-480.0,0.000231,2]
[388453731,1759175445734,-480.0,0.000231,2]
[388453732,1759175445743,-480.0,0.000231,2]
[388453733,1759175445755,-522.75,0.000231,2]
[388453734,1759175445765,-478.14170649,0.000231,2]
[388453735,1759175445775,-480.0,0.000231,2]
[388453736,1759175445785,-480.0,0.000231,2]
[388453737,1759175445796,-480.0,0.00023104,2]
[388453738,1759175445806,-480.0,0.00023104,2]
[388453739,1759175445817,-506.0,0.00023132,2]
[388453740,1759175445827,-506.0,0.00023148,2]
[388453741,1759175445837,-480.0,0.00023171,2]
[388453742,1759175445847,-480.0,0.00023171,2]
[388453743,1759175445857,-348.96976665,0.00023171,2]
[388453744,1759175445867,-480.45485604,0.00023171,2]
[388453745,1759175445877,-480.0,0.00023171,2]
[388453746,1759175445888,-480.0,0.00023171,2]
[388453747,1759175445899,-647.82,0.00023171,2]
[388453748,1759175445909,-480.0,0.00023171,2]
[388453749,1759175445919,-480.0,0.00023171,2]
[388453750,1759175445930,-480.0,0.00023171,2]
[388453751,1759175445941,-520.26,0.00023171,2]
[388453752,1759175445951,-480.0,0.00023171,2]
[388453753,1759175445961,-641.12,0.00023171,2]
[388453754,1759175445972,-615.42,0.00023171,2]
[388453755,1759175445982,-480.0,0.00023171,2]
[388453756,1759175445993,-480.0,0.00023171,2]
[388453757,1759175446003,-480.0,0.00023171,2]
[388453758,1759175446013,-480.0,0.00023171,2]
[388453759,1759175446023,-798.31,0.00023171,2]
[388453760,1759175446033,-480.0,0.00023171,2]
[388453761,1759175446043,-480.0,0.00023171,2]
[388453762,1759175446053,-480.0,0.00023171,2]
[388453763,1759175446063,-480.0,0.00023171,2]
[388453764,1759175446074,-480.0,0.00023171,2]
[388453765,1759175446085,-480.0,0.00023171,2]
[388453766,1759175446096,-685.03,0.00023171,2]
[388453767,1759175446106,-480.0,0.00023171,2]
[388453768,1759175446117,-594.81,0.00023171,2]
[388453769,1759175446127,-480.0,0.00023171,2]
[388453770,1759175446137,-480.0,0.00023171,2]
[388453771,1759175446147,-480.0,0.00023171,2]
[388453772,1759175446157,-1601.04,0.00023171,2]
[388453773,1759175446167,-480.0,0.00023171,2]
[388453774,1759175446177,-480.0,0.00023171,2]
[388453775,1759175446187,-714.34,0.00023171,2]
[388453776,1759175446198,-1069.38,0.00023171,2]
[388453777,1759175446208,-522.42,0.00023171,2]
[388453778,1759175446219,-480.0,0.00023171,2]
[388453779,1759175446229,-480.0,0.00023171,2]
[388453780,1759175446239,-575.73,0.00023171,2]
[388453781,1759175446250,-480.0,0.00023171,2]
[388453782,1759175446260,-480.0,0.00023171,2]
[388453783,1759175446271,-480.0,0.00023171,2]
[388453784,1759175446282,-480.0,0.00023171,2]
[388453785,1759175446292,-480.0,0.00023171,2]
[388453786,1759175446303,-500.0,0.00023171,2]
[388453787,1759175446313,-480.0,0.00023171,2]
[388453788,1759175446324,-480.0,0.00023171,2]
[388453789,1759175446334,-480.0,0.00023171,2]
[388453790,1759175446345,-480.0,0.00023171,2]
[388453791,1759175446356,-1693.78,0.00023171,2]
[388453792,1759175446366,-480.0,0.00023171,2]
[388453793,1759175446376,-480.0,0.00023171,2]
[388453794,1759175446387,-522.58,0.00023171,2]
[388453795,1759175446398,-480.0,0.00023171,2]
[388453796,1759175446408,-550.3,0.00023171,2]
[388453797,1759175446418,-480.0,0.00023171,2]
[388453798,1759175446427,-480.0,0.00023171,2]
[388453799,1759175446437,-480.0,0.00023171,2]
[388453800,1759175446447,-563.72,0.00023171,2]
[388453801,1759175446458,-480.0,0.00023171,2]
[388453802,1759175446468,-480.0,0.00023171,2]
[388453803,1759175446478,-480.0,0.00023171,2]
[388453804,1759175446488,-480.0,0.00023171,2]
[388453805,1759175446498,-480.0,0.00023171,2]
[388453806,1759175446508,-480.0,0.00023171,2]
[388453807,1759175446519,-480.0,0.00023171,2]
[388453808,1759175446529,-480.0,0.00023171,2]
[388453809,1759175446539,-480.0,0.00023171,2]
[388453810,1759175446549,-480.0,0.00023171,2]
[388453811,1759175446559,-480.0,0.00023171,2]
[388453812,1759175446569,-480.0,0.00023171,2]
[388453813,1759175446579,-545.51,0.00023171,2]
[388453814,1759175446589,-480.0,0.00023171,2]
[388453815,1759175446600,-480.0,0.00023171,2]
[388453816,1759175446610,-518.34,0.00023171,2]
[388453817,1759175446620,-480.0,0.00023171,2]
[388453818,1759175446630,-480.0,0.00023171,2]
[388453819,1759175446640,-1153.42,0.00023171,2]
[388453820,1759175446650,-480.5,0.00023171,2]
[388453821,1759175446660,-1014.05,0.00023171,2]
[388453822,1759175446670,-520.24,0.00023171,2]
[388453823,1759175446681,-480.0,0.00023171,2]
[388453824,1759175446691,-480.0,0.00023171,2]
[388453825,1759175446702,-527.16,0.00023171,2]
[388453826,1759175446715,-480.0,0.00023171,2]
[388453827,1759175446732,-480.0,0.00023171,2]
[388453828,1759175446743,-568.42,0.00023171,2]
[388453829,1759175446753,-480.0,0.00023171,2]
[388453830,1759175446767,-611.37,0.00023171,2]
[388453831,1759175446781,-1010.33,0.00023171,2]
[388453832,1759175446793,-504.25,0.00023171,2]
[388453833,1759175446807,-480.0,0.00023171,2]
[388453834,1759175446818,-612.43,0.00023171,2]
[388453835,1759175446830,-480.0,0.00023171,2]
[388453836,1759175446843,-480.0,0.00023171,2]
[388453837,1759175446856,-480.0,0.00023171,2]
[388453838,1759175446868,-490.88353913,0.00023171,2]
[388453839,1759175446881,-480.0,0.00023171,2]
[388453840,1759175446893,-480.0,0.00023171,2]
[388453841,1759175446905,-480.0,0.00023171,2]
[388453842,1759175446919,-480.0,0.00023171,2]
[388453843,1759175446932,-480.0,0.00023171,2]
[388453844,1759175446943,-666.94,0.00023171,2]
[388453845,1759175446956,-480.0,0.00023171,2]
[388453846,1759175446967,-484.39,0.00023171,2]
[388453847,1759175446978,-1662.43,0.00023171,2]
[388453848,1759175446991,-480.0,0.00023171,2]
[388453849,1759175447004,-480.0,0.00023171,2]
[388453850,1759175447016,-864.52,0.00023171,2]
[388453851,1759175447028,-480.0,0.00023171,2]
[388453852,1759175447039,-480.0,0.00023171,2]
[388453853,1759175447050,-2084.61,0.00023171,2]
[388453854,1759175447063,-480.0,0.00023171,2]
[388453855,1759175447075,-480.0,0.00023171,2]
[388453856,1759175447088,-480.0,0.00023171,2]
[388453857,1759175447100,-151.0,0.00023171,7]
[388453858,1759175447113,-480.0,0.00023171,2]
[388453859,1759175447125,-575.84,0.00023171,2]
[388453860,1759175447138,-151.0,0.00023171,7]
[388453861,1759175447151,-480.0,0.00023171,2]
[388453862,1759175447164,-198.2541,0.00023171,7]
[388453863,1759175447176,-151.0,0.00023171,7]
[388453864,1759175447188,-151.0,0.00023171,7]
[388453865,1759175447198,-151.0,0.00023171,7]
[388453866,1759175447209,-480.0,0.00023171,2]
[388453867,1759175447220,-480.0,0.00023171,2]
[388453868,1759175447232,-565.04,0.00023171,2]
[388453869,1759175447244,-480.0,0.00023171,2]
[388453870,1759175447258,-480.0,0.00023171,2]
[388453871,1759175447271,-480.0,0.00023171,2]
[388453872,1759175447282,-745.36,0.00023171,2]
[388453873,1759175447293,-480.0,0.00023171,2]
[388453874,1759175447304,-480.0,0.00023171,2]
[388453875,1759175447315,-480.0,0.00023171,2]
[388453876,1759175447331,-536.46,0.00023171,2]
[388453877,1759175447343,-480.0,0.00023171,2]
[388453878,1759175447355,-480.0,0.00023171,2]
[388453879,1759175447366,-522.59,0.00023171,2]
[388453880,1759175447377,-480.0,0.00023171,2]
[388453881,1759175447389,-480.0,0.00023171,2]
[388453882,1759175447400,-593.24745115,0.00023171,2]
[388453883,1759175447412,-480.0,0.00023171,2]
[388453884,1759175447423,-480.0,0.00023171,2]
[388453885,1759175447435,-375.346038,0.00023171,7]
[388453886,1759175447446,-151.0,0.00023171,7]
[388453887,1759175447457,-375.346038,0.00023171,7]
[388453888,1759175447469,-151.0,0.00023171,7]
[388453889,1759175447479,-375.346038,0.00023171,7]
[388453890,1759175447491,-151.0,0.00023171,7]
[388453891,1759175447502,-375.346038,0.00023171,7]
[388453892,1759175447513,-244.43081,0.00023171,7]
[388453893,1759175447524,-480.0,0.00023171,2]
[388453894,1759175447535,-151.0,0.00023171,7]
[388453895,1759175447547,-480.0,0.00023171,2]
[388453896,1759175447557,-282.999716,0.00023171,7]
[388453897,1759175447570,-480.0,0.00023171,2]
[388453898,1759175447582,-318.58338537,0.00023171,2]
[388453899,1759175447594,-151.0,0.00023171,7]
[388453900,1759175447606,-498.12,0.00023171,2]
[388453901,1759175447618,-189.40172226,0.00023171,7]
[388453902,1759175447630,-151.0,0.00023171,7]
[388453903,1759175447641,-151.0,0.00023171,7]
[388453904,1759175447652,-463.655782,0.00023171,7]
[388453905,1759175447663,-463.655782,0.00023171,7]
[388453906,1759175447674,-463.655782,0.00023171,7]
[388453907,1759175447685,-463.655782,0.00023171,7]
[388453908,1759175447696,-151.0,0.00023171,7]
[388453909,1759175447707,-160.239725,0.00023171,7]
[388453910,1759175447721,-151.0,0.00023171,7]
[388453911,1759175447731,-480.0,0.00023171,2]
[388453912,1759175447743,-151.0,0.00023171,7]
[388453913,1759175447755,-151.0,0.00023171,7]